Workbook

Sheet Informe_7
A1: ENTEL PERU S.A.-2018-7 ATRIBUCIÓN DE GASTOS A LAS LINEAS DE NEGOCIO-21062019
B3: INFORME 7: ATRIBUCIÓN DE GASTOS A LAS LINEAS DE NEGOCIO | P3: Informe 7 : ATRIBUCION DE GASTOS A LAS LINEAS DE NEGOCIO
A5: Periodo de reporte: Al 31 de Diciembre 2018
A7: Expresado en Miles de Nuevos Soles | B7: 1. Acceso Instalación Telefonía Fija de Abonado Urbano | C7: 2. Prestación del servicio de voz Telefonía Fija local desde Abonado Urbano | D7: 3. Prestación del servicio de voz Telefonía Fija LD desde Abonado Urbano | E7: 4. Prestación del servicio de voz Telefonía Fija Local desde TUP Urbano | F7: 5. Prestación del servicio de voz Telefonía Fija LD desde TUP Urbano | G7: 6. Acceso Instalación Telefonía Fija de Abonado Rural | H7: 7. Prestación del servicio de voz Telefonía Fija Local desde Abonado Rural | I7: 8. Prestación del servicio de voz Telefonía Fija LD desde Abonado Rural | J7: 9. Prestación del servicio de voz Telefonía Fija Local desde TUP Rural | K7: 10. Prestación del servicio de voz Telefonía Fija LD desde TUP Rural | L7: 11. Instalación Televisión de Paga | M7: 12. Prestación de servicios Televisión de Paga | N7: 13. Instalación Internet Fijo | O7: 14. Prestación de servicios Internet Fijo | P7: 15. Prestación de servicio voz móvil por Telefonía Móvil | Q7: 16. Mensajes de Texto Telefonía Móvil | R7: 17. Roaming Internacional por Telefonía Móvil | S7: 18. Prestación de Internet Móvil | T7: 19. Servicios Suplementarios | U7: 20. Servicios de valor añadido (No incluye Internet) | V7: 21. Suministro de Equipos | W7: 22. Instalación para Alquiler de circuitos y Transmisión de Datos para clientes privados y otros operadores | X7: 23. Alquiler de Circuitos y Transmisión de Datos a clientes privados y otros operadores | Y7: 24. Provisión de acceso a EEDE | Z7: 25. Interconexión | AA7: Total
A8: Gastos de Personal | C8: 12.85 | D8: 0.187 | O8: 69956.024 | P8: 35872.68 | R8: 1394.275 | S8: 233784.828 | T8: 1548.231 | V8: 3753.893 | Y8: 1362.926 | Z8: 3189.569 | AA8: =SUM(C8:Z8) -> 350875.463
A9: Gastos Generales y Administrativos | C9: 78.629 | D9: 14.069 | O9: 295256.439 | P9: 88687.526 | R9: 10001.19 | S9: 1161511.259 | T9: 29773.027 | V9: 54320.322 | Y9: 4105.046 | Z9: 49661.521 | AA9: =SUM(C9:Z9) -> 1693409.028
A10: Depreciación | C10: 0.75964 | D10: 0.53466 | O10: 37512.7142 | P10: 915.87165 | Q10: 0.10619 | R10: 29.67781 | S10: 118954.5887 | Z10: 368.82585 | AA10: =SUM(C10:Z10) -> 157783.0787
A11: Amortización | C11: 0.31865 | D11: 0.22428 | O11: 15735.64217 | P11: 384.18517 | Q11: 0.04454 | R11: 12.4491 | S11: 49898.46464 | Z11: 154.29371 | AA11: =SUM(C11:Z11) -> 66185.62226
A12: Deterioro de Activos Fijos | AA12: =SUM(C12:Z12) -> 0
A13: Existencias | T13: 0 | V13: 771390.498 | AA13: =SUM(B13:Z13) -> 771390.498
A14: Capitalización de Gastos por Construcción de Planta o Trabajo para el Inmovilizado | C14: -0.542 | D14: -0.032 | O14: -7745.16 | P14: -968.8 | S14: -36481.575 | Z14: -481.62 | AA14: =SUM(B14:Z14) -> -45677.729
A15: Honorarios por transferencia de capacidad tecnica | AA15: =SUM(B15:Z15) -> 0
A16: Provisión para desvalorización de activos | V16: 7713 | AA16: =SUM(B16:Z16) -> 7713
A17: Otros Gastos Operativos | AA17: =SUM(B17:Z17) -> 0
A18: Total general | B18: =+SUM(B8:B17) -> 0 | C18: 92.01529 | D18: 14.98294 | E18: 0 | F18: 0 | G18: 0 | H18: 0 | I18: 0 | J18: 0 | K18: 0 | L18: 0 | M18: 0 | N18: 0 | O18: 410715.6594 | P18: 124891.4628 | Q18: 0.15073 | R18: 11437.59191 | S18: 1527667.565 | T18: 31321.258 | U18: 0 | V18: 837177.713 | W18: 0 | X18: 0 | Y18: 5467.972 | Z18: 52892.58956 | AA18: =+SUM(AA8:AA17) -> 3001678.961
C20: =(+C18/$AA$18)*$AA$20 -> 29.63392914 | D20: 4.825321773 | E20: 0 | F20: 0 | G20: 0 | H20: 0 | I20: 0 | J20: 0 | K20: 0 | L20: 0 | M20: 0 | N20: 0 | O20: 132272.7858 | P20: 40221.8453 | Q20: 0.04854325992 | R20: 3683.526816 | S20: 491992.0633 | T20: 10087.149 | U20: 0 | V20: 269616.7672 | W20: 0 | X20: 0 | Y20: 1760.984449 | Z20: =(+Z18/$AA$18)*$AA$20 -> 17034.29127 | AA20: 966703.921
